bitfinex-derivatives/quotes_BTCF0:USTF0_20250330
["timestamp","ask_amount","ask_price","bid_price","bid_amount"]
[1743376202744,0.28376221,82289.0,82288.0,0.00184]
[1743376202943,0.28376221,82289.0,82288.0,0.1394]
[1743376203335,0.28376221,82289.0,82288.0,0.2609462]
[1743376203756,0.16221751,82289.0,82288.0,0.2609462]
[1743376204540,0.0783,82289.0,82288.0,0.2609462]
[1743376205034,0.0783,82289.0,82288.0,0.3328462]
[1743376205346,0.1,82300.0,82299.0,0.12153]
[1743376205537,0.1,82300.0,82299.0,0.26089]
[1743376208028,0.2432,82300.0,82299.0,0.26089]
[1743376208639,0.2432,82300.0,82299.0,0.27404833]
[1743376209033,0.3647285,82300.0,82299.0,0.27404833]
[1743376209635,0.3647285,82300.0,82299.0,0.13652833]
[1743376209829,0.3647285,82300.0,82299.0,0.00184]
[1743376210039,0.1823043,82297.0,82296.0,0.12153]
[1743376210343,0.1215374,82295.0,82294.0,0.1215369]
[1743376210534,0.1215374,82295.0,82294.0,0.1233769]
[1743376210951,0.2606374,82295.0,82294.0,0.1233769]
[1743376212150,0.2606374,82295.0,82294.0,0.00184]
[1743376212642,0.27360122,82295.0,82294.0,0.1233774]
[1743376214338,0.2606374,82295.0,82294.0,0.1233774]
[1743376215651,0.27387555,82295.0,82294.0,0.00184]
[1743376215854,0.0607707,82292.0,82289.0,0.1215377]
[1743376216049,0.0702,82291.0,82290.0,0.1943433]
[1743376216245,0.1917418,82291.0,82290.0,0.2660833]
[1743376216746,0.0702,82291.0,82290.0,0.2660833]
[1743376216950,0.0716,82295.0,82294.0,0.1215374]
[1743376217154,0.0716,82295.0,82294.0,0.1233774]
[1743376217845,0.1931363,82295.0,82294.0,0.00184]
[1743376218051,0.1215388,82294.0,82293.0,0.1215381]
[1743376218245,0.1906388,82294.0,82293.0,0.1234581]
[1743376218445,0.1906388,82294.0,82293.0,0.2624581]
[1743376218840,0.1906388,82294.0,82293.0,0.00192]
[1743376219044,0.1215462,82288.0,82287.0,0.3213162]
[1743376219246,0.1215462,82288.0,82287.0,0.4606362]
[1743376219559,0.182303,82298.0,82297.0,0.12153]
[1743376219753,0.182303,82298.0,82297.0,0.12337]
[1743376220256,0.1,82300.0,82299.0,0.12153]
[1743376220554,0.1,82300.0,82299.0,0.12337]
[1743376220745,0.1,82300.0,82299.0,0.19667]
[1743376220947,0.1,82300.0,82299.0,0.26467]
[1743376221154,0.1,82300.0,82299.0,1.76467]
[1743376223449,0.0004,82308.0,82307.0,0.1215182]
[1743376223647,0.0004,82308.0,82307.0,0.2607582]
[1743376224049,0.1219167,82308.0,82307.0,0.4054582]
[1743376224362,0.0004,82308.0,82307.0,0.4054582]
[1743376225260,0.1219167,82308.0,82307.0,0.4054582]
[1743376226563,0.2604167,82308.0,82307.0,0.4054582]
[1743376226745,0.1389,82308.0,82307.0,0.4054582]
[1743376229763,0.07,82318.0,82317.0,0.1215034]
[1743376230065,0.07,82318.0,82317.0,0.1233434]
[1743376230259,0.07,82318.0,82317.0,0.2606634]
[1743376231363,0.1915019,82318.0,82317.0,0.2606634]
[1743376231664,0.20080919,82318.0,82317.0,0.2606634]
[1743376233969,0.07930729,82318.0,82317.0,0.2606634]
[1743376234767,0.07930729,82318.0,82317.0,0.3932634]
[1743376235168,0.07930729,82318.0,82317.0,0.40870019]
[1743376235863,0.00930729,82318.0,82317.0,0.40870019]
[1743376236053,0.1331,82321.0,82320.0,0.121499]
[1743376236257,0.1331,82321.0,82320.0,0.123339]
[1743376236766,0.2545975,82321.0,82320.0,0.123339]
[1743376236971,0.2545975,82321.0,82320.0,0.13877579]
[1743376238960,0.14241949,82321.0,82320.0,0.13877579]
[1743376239355,0.1331,82321.0,82320.0,0.13877579]
[1743376239555,0.0632,82321.0,82320.0,0.26957579]
[1743376239864,0.1218931,82324.0,82323.0,0.1214946]
[1743376240063,0.1218931,82324.0,82323.0,0.1233346]
[1743376240369,0.0004,82324.0,82323.0,0.1233346]
[1743376240570,0.0004,82324.0,82323.0,0.13877139]
[1743376240571,0.0671,82324.0,82323.0,0.13877139]
[1743376240869,0.1885931,82324.0,82323.0,0.13877139]
[1743376242158,0.19755338,82324.0,82323.0,0.13877139]
[1743376243460,0.19755338,82324.0,82323.0,0.27601139]
[1743376243656,0.19755338,82324.0,82323.0,0.13877139]
[1743376243860,0.19755338,82324.0,82323.0,0.27601139]
[1743376244155,0.19755338,82324.0,82323.0,0.2605746]
[1743376244468,0.19755338,82324.0,82323.0,0.1233346]
[1743376247169,0.19755338,82324.0,82323.0,0.13862814]
[1743376248669,0.07606028,82324.0,82323.0,0.13862814]
[1743376249165,0.0671,82324.0,82323.0,0.13862814]
[1743376249473,0.1313,82324.0,82323.0,0.27352814]
[1743376250466,0.2527931,82324.0,82323.0,0.27352814]
[1743376250673,0.2527931,82324.0,82323.0,0.13862814]
[1743376250868,0.26207065,82324.0,82323.0,0.13862814]
[1743376251676,0.26207065,82324.0,82323.0,0.20672814]
[1743376252971,0.26207065,82324.0,82323.0,0.13862814]
[1743376254577,0.14057755,82324.0,82323.0,0.13862814]
[1743376254777,0.26207065,82324.0,82323.0,0.20252814]
[1743376254977,0.26207065,82324.0,82323.0,0.2556346]
[1743376257375,0.14057755,82324.0,82323.0,0.2556346]
[1743376257582,0.0004,82324.0,82323.0,0.2556346]
[1743376258169,0.0004,82324.0,82323.0,1.7556346]
[1743376258983,0.0004,82324.0,82323.0,0.27150957]
[1743376259569,0.0004,82324.0,82323.0,1.77150957]
[1743376261482,0.0631,82330.0,82329.0,0.1214857]
[1743376261681,0.0631,82330.0,82329.0,0.1233257]
[1743376261878,0.3608,82331.0,82330.0,0.1214842]
[1743376262080,0.3608,82331.0,82330.0,0.3093242]
[1743376262374,0.0004,82340.0,82339.0,0.1214709]
[1743376262578,0.0004,82340.0,82339.0,0.6212309]
[1743376262771,0.1198,82347.0,82346.0,0.1214606]
[1743376262971,0.0615,82347.0,82346.0,0.1234206]
[1743376263575,0.0615,82347.0,82346.0,0.26183743]
[1743376263772,0.0615,82347.0,82346.0,0.27809104]
[1743376264085,0.0583,82350.0,82349.0,0.1214562]
[1743376264387,0.06,82352.0,82351.0,0.1214532]
[1743376264588,0.06,82352.0,82351.0,0.1232932]
[1743376265086,0.06,82352.0,82351.0,0.2481932]
[1743376265283,0.0004,82356.0,82353.0,0.1214503]
[1743376265483,0.0004,82356.0,82353.0,0.1232903]
[1743376265886,0.0004,82356.0,82355.0,0.1214473]
[1743376266184,0.0004,82356.0,82355.0,0.1233273]
[1743376266488,0.0004,82356.0,82355.0,0.13864413]
[1743376266691,0.0004,82356.0,82355.0,0.19994413]
[1743376267387,0.06,82358.0,82357.0,0.1214444]
[1743376267685,0.06,82358.0,82357.0,0.1233644]
[1743376267882,0.059,82360.0,82359.0,0.1214414]
[1743376268081,0.059,82360.0,82359.0,0.2604014]
[1743376268590,0.059,82360.0,82359.0,0.3197014]
[1743376268778,0.059,82360.0,82359.0,0.36026747]
[1743376269378,0.1224,82360.0,82359.0,0.36026747]
[1743376270687,0.3608,82371.0,82364.0,0.1214341]
[1743376270887,0.3608,82371.0,82364.0,0.1232741]
[1743376271079,0.1214075,82383.0,82371.0,0.1214238]
[1743376271276,0.0607011,82386.0,82371.0,0.1233838]
[1743376271277,0.01275706,82382.0,82371.0,0.1233838]
[1743376271584,0.0004,82388.0,82386.0,0.1214016]
[1743376271975,0.0004,82388.0,82387.0,0.1214002]
[1743376272176,0.0004,82388.0,82387.0,0.5485402]
[1743376272371,0.1,82400.0,82399.0,0.1213825]
[1743376272576,0.1,82400.0,82399.0,0.1232225]
[1743376273181,0.1,82400.0,82399.0,0.2486225]
[1743376273372,0.07579366,82400.0,82399.0,0.2486225]
[1743376273792,0.07579366,82400.0,82399.0,0.26146161]
[1743376274890,0.07579366,82400.0,82399.0,0.35320744]
[1743376275678,0.07579366,82400.0,82399.0,0.33756161]
[1743376276390,0.07579366,82400.0,82399.0,0.20056161]
[1743376276691,0.19717466,82400.0,82399.0,0.33752161]
[1743376278280,0.07579366,82400.0,82399.0,0.33752161]
[1743376278806,0.19717466,82400.0,82399.0,0.33752161]
[1743376279990,0.19717466,82400.0,82399.0,0.1232225]
[1743376281892,0.55797466,82400.0,82399.0,0.1232225]
[1743376283796,0.55797466,82400.0,82399.0,0.00184]
[1743376284091,0.55797466,82400.0,82397.0,0.1213841]
[1743376284092,0.1820991,82391.0,82390.0,0.1213868]
[1743376284295,0.1820991,82391.0,82390.0,0.1232668]
[1743376284487,0.2483989,82391.0,82390.0,0.1232668]
[1743376284687,0.1877,82391.0,82390.0,0.1232668]
[1743376285387,0.3090943,82391.0,82390.0,0.1232668]
[1743376286793,0.3090943,82391.0,82390.0,0.00188]
[1743376286988,0.3090943,82391.0,82390.0,0.1232758]
[1743376287798,0.3090943,82391.0,82390.0,0.00188]
[1743376288502,0.3090943,82391.0,82390.0,0.1232758]
[1743376291795,0.3090943,82391.0,82390.0,0.1876758]
[1743376292295,0.3090943,82391.0,82390.0,0.2406758]
[1743376293901,0.3090943,82391.0,82390.0,0.25610757]
[1743376294689,0.3090943,82391.0,82390.0,0.13870757]
[1743376294888,0.3090943,82391.0,82390.0,0.13682757]
[1743376295084,0.3090943,82391.0,82390.0,0.13870757]
[1743376295503,0.2459943,82391.0,82390.0,0.13870757]
[1743376295906,0.2459943,82391.0,82390.0,0.24170757]
[1743376296604,0.064,82391.0,82390.0,0.257802]
[1743376296999,0.3608,82393.0,82392.0,0.1213928]
[1743376297304,0.3608,82393.0,82392.0,0.13932723]
[1743376297900,0.3608,82393.0,82392.0,0.1638008]
[1743376298094,0.4821913,82393.0,82392.0,0.17995025]
[1743376298993,0.4821913,82393.0,82392.0,0.05855745]
[1743376299199,0.49499013,82393.0,82392.0,0.17995025]
[1743376299909,0.49499013,82393.0,82392.0,0.05855745]
[1743376300093,0.49499013,82393.0,82392.0,0.05856627]
[1743376300509,0.49499013,82393.0,82392.0,0.03343004]
[1743376301009,0.6688604,82393.0,82392.0,0.01727177]
[1743376301208,0.6688604,82393.0,82392.0,0.13866457]
[1743376302797,0.6688604,82393.0,82392.0,0.1232328]
[1743376302994,0.65606157,82393.0,82392.0,0.1232328]
[1743376303206,0.65606157,82393.0,82392.0,0.2290328]
[1743376304699,0.70896157,82393.0,82392.0,0.2290328]
[1743376306097,0.5875913,82393.0,82392.0,0.2290328]
[1743376306298,0.5346913,82393.0,82392.0,0.2290328]
[1743376306503,0.4821913,82393.0,82392.0,0.2290328]
[1743376306897,0.3608,82393.0,82392.0,0.2290328]
[1743376307393,0.0004,82404.0,82399.0,0.1213825]
[1743376307598,0.0004,82404.0,82399.0,0.13944147]
[1743376308013,0.0004,82404.0,82399.0,0.13944026]
[1743376308314,0.0004,82404.0,82399.0,0.24564026]
[1743376308610,0.0004,82404.0,82399.0,0.26083544]
[1743376309202,0.0004,82404.0,82399.0,0.28651447]
[1743376310008,0.0004,82404.0,82399.0,0.286987]
[1743376310495,0.0004,82404.0,82399.0,0.647787]
[1743376312010,0.0004,82404.0,82399.0,2.14738797]
[1743376312918,0.0004,82404.0,82399.0,0.74312492]
[1743376313095,0.0557,82403.0,82399.0,0.60636492]
[1743376313298,0.107,82403.0,82399.0,0.60636492]
[1743376313608,0.0004,82404.0,82399.0,0.5902225]
[1743376314115,0.1118,82403.0,82399.0,0.5902225]
[1743376315307,0.1118,82403.0,82399.0,0.80700219]
[1743376318716,0.1118,82403.0,82399.0,0.5902225]
[1743376321217,0.1118,82403.0,82399.0,0.2294225]
[1743376322110,0.1118,82403.0,82399.0,0.10804]
[1743376322315,0.19717466,82400.0,82399.0,0.05324]
[1743376322525,0.07579366,82400.0,82399.0,0.1232225]
[1743376322821,0.18319366,82400.0,82399.0,0.1232225]
[1743376323213,0.18319366,82400.0,82399.0,0.2293225]
[1743376323414,0.12789366,82400.0,82399.0,0.2293225]
[1743376324211,0.24927466,82400.0,82399.0,0.2293225]
[1743376324716,0.24927466,82400.0,82399.0,0.2311625]
[1743376324913,0.24927466,82400.0,82399.0,0.2293225]
[1743376326021,0.24927466,82400.0,82399.0,0.1232225]
[1743376326218,0.37063461,82400.0,82399.0,0.1232225]
[1743376329512,0.12789366,82400.0,82399.0,0.1232225]
[1743376329719,0.12789366,82400.0,82399.0,0.2302225]
[1743376330414,0.07579366,82400.0,82399.0,0.2302225]
[1743376330618,0.07579366,82400.0,82399.0,1.7302225]
[1743376331020,0.07579366,82400.0,82399.0,0.2302225]
[1743376332915,0.07579366,82400.0,82399.0,0.24283497]
[1743376342238,0.19717466,82400.0,82399.0,0.00184]
[1743376342537,0.19717466,82400.0,82393.0,0.1213881]
[1743376342538,0.1213928,82394.0,82393.0,0.1213881]
[1743376342724,0.4821928,82394.0,82393.0,0.1213881]
[1743376342927,0.4821928,82394.0,82390.0,0.21677969]
[1743376342928,0.4214955,82394.0,82390.0,0.21677969]
[1743376343128,0.1213943,82391.0,82390.0,0.21865969]
[1743376343440,0.1213943,82391.0,82390.0,0.34005549]
[1743376343841,0.1213943,82391.0,82390.0,0.21865969]
[1743376344030,0.25531645,82391.0,82390.0,0.21865969]
[1743376344427,0.36171645,82391.0,82390.0,0.21865969]
[1743376344836,0.36171645,82391.0,82390.0,0.00188]
[1743376345044,0.1214061,82383.0,82382.0,0.1214074]
[1743376345232,0.4822061,82383.0,82382.0,0.00184]
[1743376345743,0.121412,82380.0,82379.0,0.1214108]
[1743376345940,0.121412,82380.0,82379.0,0.1232508]
[1743376346130,0.231112,82380.0,82379.0,0.1232508]
[1743376347730,0.231112,82380.0,82379.0,0.00184]
[1743376347937,0.35450142,82380.0,82379.0,0.00184]
[1743376348139,0.121412,82379.0,82378.0,0.00018216]
[1743376348342,0.13059871,82379.0,82378.0,0.00018216]
[1743376348637,0.23829871,82379.0,82378.0,0.00018216]
[1743376348846,0.35968813,82379.0,82378.0,0.00206216]
[1743376349038,0.35968813,82379.0,82378.0,0.00018216]
[1743376349542,0.35968813,82379.0,82378.0,0.12159556]
[1743376349735,0.35968813,82379.0,82378.0,0.00018216]
[1743376349736,0.36268813,82379.0,82378.0,0.00018216]
[1743376349937,0.36568813,82379.0,82378.0,0.00018216]
[1743376351240,0.36268813,82379.0,82378.0,0.00018216]
[1743376351437,0.36568813,82379.0,82378.0,0.00018216]
[1743376351626,0.36268813,82379.0,82378.0,0.00018216]
[1743376351831,0.36568813,82379.0,82378.0,0.00018216]
[1743376352232,0.057,82379.0,82378.0,0.12159556]
[1743376352440,0.004,82379.0,82378.0,0.12343556]
[1743376352945,0.005,82379.0,82378.0,0.22923556]
[1743376353132,0.005,82379.0,82378.0,1.72923556]
[1743376353447,0.21821618,82393.0,82392.0,0.1213928]
[1743376353643,0.21821618,82393.0,82392.0,0.1232328]
[1743376354242,0.21821618,82393.0,82392.0,0.1749328]
[1743376355227,0.22621618,82393.0,82392.0,0.1749328]
[1743376355431,0.008,82393.0,82392.0,0.1749328]
[1743376355638,0.003,82393.0,82392.0,0.1749328]
[1743376355843,0.008,82393.0,82392.0,0.1749328]
[1743376356630,0.008,82393.0,82392.0,0.2269328]
[1743376357632,0.005,82393.0,82392.0,0.2269328]
[1743376361936,0.005,82393.0,82392.0,0.5877328]
[1743376362141,0.005,82393.0,82392.0,0.2269328]
[1743376362339,0.005,82393.0,82392.0,0.5877328]
[1743376362842,0.005,82393.0,82392.0,0.2269328]
[1743376363032,0.005,82393.0,82392.0,0.5877328]
[1743376365039,0.005,82393.0,82392.0,0.2269328]
[1743376365348,0.005,82393.0,82392.0,0.5877328]
[1743376367044,0.3658,82393.0,82392.0,0.2269328]
[1743376367951,0.3658,82393.0,82392.0,0.1232328]
[1743376368951,0.3658,82393.0,82392.0,0.1723328]
[1743376370039,0.4871913,82393.0,82392.0,0.1723328]
[1743376370233,0.4871913,82393.0,82392.0,0.1232328]
[1743376370643,0.3658,82393.0,82392.0,0.1232328]
[1743376371150,0.4871913,82393.0,82392.0,0.1232328]
[1743376371944,0.60856157,82393.0,82392.0,0.1232328]
[1743376374736,0.60856157,82393.0,82392.0,0.00184]
[1743376375043,0.1821038,82387.0,82386.0,0.1214009]
[1743376375240,0.1821038,82387.0,82386.0,0.1233609]
[1743376375642,0.0607007,82387.0,82386.0,0.1233609]
[1743376376149,0.1572007,82387.0,82386.0,0.1233609]
[1743376376346,0.1572007,82387.0,82386.0,0.00196]
[1743376376553,0.1592007,82387.0,82386.0,0.00196]
[1743376376753,0.1592007,82387.0,82380.0,0.108205]
[1743376376754,0.1214061,82383.0,82380.0,0.0475]
[1743376376937,0.121409,82381.0,82380.0,0.04934]
[1743376377341,0.578809,82381.0,82380.0,0.00184]
[1743376377543,0.121412,82379.0,82369.0,0.13644]
[1743376378145,0.121412,82379.0,82370.0,0.0489]
[1743376378345,0.121412,82379.0,82370.0,0.0996]
[1743376378542,0.1214311,82366.0,82365.0,0.13644]
[1743376378741,0.1214311,82366.0,82365.0,0.18718]
[1743376380142,0.1224311,82366.0,82365.0,0.19964472]
[1743376380441,0.1224311,82366.0,82365.0,0.18463732]
[1743376381342,0.1224311,82366.0,82365.0,0.18563732]
[1743376381841,0.1224311,82366.0,82365.0,0.23383732]
[1743376382041,0.1224311,82366.0,82365.0,0.23283732]
[1743376382250,0.1214311,82366.0,82365.0,0.23283732]
[1743376382449,0.1214311,82366.0,82365.0,0.09894]
[1743376382651,0.1214311,82366.0,82365.0,0.1232726]
[1743376382850,0.1224311,82366.0,82365.0,0.1232726]
[1743376383358,0.1224311,82366.0,82365.0,0.00184]
[1743376383553,0.1224311,82366.0,82365.0,0.1232726]
[1743376383944,0.1244311,82366.0,82365.0,0.1232726]
[1743376384456,0.1244311,82366.0,82365.0,0.00184]
[1743376384648,0.1214341,82364.0,82363.0,0.00048565]
[1743376384846,0.1214341,82364.0,82363.0,0.05098565]
[1743376385046,0.1214341,82364.0,82363.0,0.10232565]
[1743376385247,0.2224341,82364.0,82363.0,0.10232565]
[1743376385754,0.2224341,82364.0,82363.0,0.22376115]
[1743376386255,0.2244341,82364.0,82363.0,0.10232565]
[1743376386844,0.2244341,82364.0,82363.0,0.10048565]
[1743376387045,0.2244341,82364.0,82363.0,0.10240565]
[1743376387556,0.2264341,82364.0,82363.0,0.10240565]
[1743376387944,0.2264341,82364.0,82363.0,0.22384115]
[1743376390958,0.105,82364.0,82363.0,0.22384115]
[1743376391164,0.004,82364.0,82363.0,0.22384115]
[1743376391376,0.1254341,82364.0,82363.0,0.22384115]
[1743376392448,0.1254341,82364.0,82363.0,0.05290565]
[1743376392650,0.2468471,82364.0,82363.0,0.00048565]
[1743376392863,0.25987404,82364.0,82363.0,0.00048565]
[1743376393067,0.35807404,82364.0,82363.0,0.00048565]
[1743376393362,0.35607404,82364.0,82363.0,0.12192115]
[1743376393556,0.35807404,82364.0,82363.0,0.12384115]
[1743376394168,0.35807404,82364.0,82363.0,0.17204115]
[1743376394366,0.1731341,82364.0,82363.0,0.17204115]
[1743376395748,0.18612475,82364.0,82363.0,0.17204115]
[1743376396556,0.1731341,82364.0,82363.0,0.17204115]
[1743376397166,0.004,82364.0,82363.0,0.17204115]
[1743376397459,0.1254341,82364.0,82363.0,0.17204115]
[1743376398472,0.1234341,82364.0,82363.0,0.17204115]
[1743376398769,0.1254341,82364.0,82363.0,0.17204115]
[1743376399572,0.1264341,82364.0,82363.0,0.17204115]
[1743376400860,0.1234341,82364.0,82363.0,0.17204115]
[1743376401060,0.1254341,82364.0,82363.0,0.17204115]
[1743376401872,0.004,82364.0,82363.0,0.17204115]
[1743376402061,0.004,82364.0,82363.0,0.22134115]
[1743376402571,0.004,82364.0,82363.0,1.72134115]
[1743376402872,0.004,82364.0,82363.0,2.21850115]
[1743376402873,0.00381784,82364.0,82363.0,2.21850115]
[1743376403571,0.00018101,82374.0,82373.0,0.1214208]
[1743376403771,0.00018101,82374.0,82373.0,0.6203808]
[1743376405572,0.00218101,82374.0,82373.0,0.6203808]
[1743376406281,0.12360031,82374.0,82373.0,0.4840608]
[1743376406480,0.12360031,82374.0,82373.0,0.5348608]
[1743376406779,0.12360031,82374.0,82373.0,0.5858608]
[1743376407168,0.22380031,82374.0,82373.0,0.5858608]
[1743376407367,0.10238101,82374.0,82373.0,0.5858608]
[1743376407568,0.22480031,82374.0,82373.0,0.5858608]
[1743376407967,0.22480031,82374.0,82373.0,0.10364]
[1743376408177,0.1214282,82368.0,82367.0,0.0607147]
[1743376408368,0.1214282,82368.0,82367.0,0.0625547]
[1743376408883,0.0607108,82373.0,82372.0,0.1214208]
[1743376409091,0.0607108,82373.0,82372.0,0.1233408]
[1743376409582,0.1604108,82373.0,82372.0,0.1233408]
[1743376410184,0.1604108,82373.0,82372.0,0.2209408]
[1743376411467,0.1634108,82373.0,82372.0,0.2209408]
[1743376411883,0.1664108,82373.0,82372.0,0.2209408]
[1743376412081,0.056,82373.0,82372.0,0.2209408]
[1743376412275,0.006,82373.0,82372.0,0.2209408]
[1743376412482,0.1264208,82373.0,82372.0,0.2209408]
[1743376412685,0.1729208,82373.0,82372.0,0.2209408]
[1743376413483,0.1699208,82373.0,82372.0,0.2209408]
[1743376413685,0.1729208,82373.0,82372.0,0.2209408]
[1743376414400,0.1719208,82373.0,82372.0,0.2209408]
[1743376415299,0.1709208,82373.0,82372.0,0.2209408]
[1743376416796,0.1689208,82373.0,82372.0,0.2209408]
[1743376417003,0.1699208,82373.0,82372.0,0.2209408]
[1743376418406,0.1709208,82373.0,82372.0,0.2209408]
[1743376420205,0.1699208,82373.0,82372.0,0.2209408]
[1743376422005,0.1709208,82373.0,82372.0,0.2209408]
[1743376422400,0.003,82373.0,82372.0,0.2209408]
[1743376423290,0.003,82373.0,82372.0,1.7209408]
[1743376423795,0.004,82373.0,82372.0,1.7209408]
[1743376424393,0.002,82373.0,82372.0,1.7209408]
[1743376424609,0.004,82373.0,82372.0,1.7209408]
[1743376425105,0.002,82373.0,82372.0,1.7209408]
[1743376425313,0.004,82373.0,82372.0,1.7209408]
[1743376425603,0.002,82373.0,82372.0,0.2209408]
[1743376425803,0.0523,82373.0,82372.0,0.2209408]
[1743376427302,0.0503,82373.0,82372.0,0.2209408]
[1743376427607,0.0523,82373.0,82372.0,0.2209408]
[1743376428202,0.1475,82373.0,82372.0,0.2209408]
[1743376429314,0.2689208,82373.0,82372.0,0.2209408]
[1743376429507,0.2689208,82373.0,82372.0,0.1233408]
[1743376432018,0.1475,82373.0,82372.0,0.2176408]
[1743376434509,0.2689208,82373.0,82372.0,0.2176408]
[1743376440319,0.2200208,82373.0,82372.0,0.2176408]
[1743376441323,0.2200208,82373.0,82372.0,0.23042913]
[1743376442308,0.004,82373.0,82372.0,0.23042913]
[1743376442923,0.1254208,82373.0,82372.0,0.23042913]
[1743376443225,0.1254208,82373.0,82372.0,0.3536808]
[1743376443426,0.2199208,82373.0,82372.0,0.23311694]
[1743376443626,0.1458,82373.0,82372.0,0.23311694]
[1743376443812,0.2199208,82373.0,82372.0,0.2176408]
[1743376444012,0.2199208,82373.0,82372.0,0.23311753]
[1743376444327,0.2199208,82373.0,82372.0,0.2176408]
[1743376445329,0.2199208,82373.0,82372.0,0.23315055]
[1743376449423,0.052,82373.0,82372.0,0.23315055]
[1743376449628,0.004,82373.0,82372.0,0.23315055]
[1743376453434,0.0968,82373.0,82372.0,0.23315055]
[1743376453623,0.0968,82373.0,82372.0,0.23313775]
[1743376454025,0.0968,82373.0,82372.0,0.36909775]
[1743376454220,0.2650208,82373.0,82372.0,0.36909775]
[1743376454438,0.2610208,82373.0,82372.0,0.36909775]
[1743376455935,0.2610208,82373.0,82372.0,0.04992]
[1743376456122,0.2610208,82373.0,82372.0,0.1253423]
[1743376456636,0.2610208,82373.0,82372.0,0.00492]
[1743376457227,0.2610208,82373.0,82372.0,0.00392]
[1743376457738,0.2620208,82373.0,82372.0,0.1243423]
[1743376458637,0.2630208,82373.0,82372.0,0.00192]
[1743376459040,0.27589501,82373.0,82372.0,0.00192]
[1743376459230,0.27489501,82373.0,82372.0,0.00192]
[1743376459421,0.2630208,82373.0,82372.0,0.00192]
[1743376459737,0.2630208,82373.0,82372.0,0.2159423]
[1743376460627,0.2620208,82373.0,82372.0,0.2159423]
[1743376461134,0.2630208,82373.0,82372.0,0.2159423]
[1743376461529,0.2640208,82373.0,82372.0,0.2159423]
[1743376461834,0.74622053,82373.0,82372.0,0.00192]
[1743376462032,0.74622053,82373.0,82363.0,0.21726534]
[1743376462033,0.1214341,82364.0,82363.0,0.21726534]
[1743376462222,0.4822341,82364.0,82363.0,0.21910534]
[1743376462837,0.6964471,82364.0,82363.0,0.21910534]
[1743376463137,0.6964471,82364.0,82363.0,0.00184]
[1743376463434,0.1214355,82363.0,82362.0,0.00626534]
[1743376463636,0.1214414,82359.0,82358.0,0.28921473]
[1743376463832,0.49465009,82359.0,82358.0,0.29113473]
[1743376464235,0.61606309,82359.0,82358.0,0.29113473]
[1743376465139,0.0607222,82357.0,82353.0,0.35988156]
[1743376465435,0.4822488,82354.0,82353.0,0.36112156]
[1743376465640,0.4835688,82354.0,82353.0,0.36112156]
[1743376465846,0.1214695,82340.0,82331.0,0.00048584]
[1743376466027,0.8420695,82340.0,82339.0,0.49895809]
[1743376466338,0.96417503,82340.0,82339.0,0.49895809]
[1743376466633,0.96317503,82340.0,82339.0,0.49895809]
[1743376467336,1.05597503,82340.0,82339.0,0.49895809]
[1743376467837,1.07007615,82340.0,82339.0,0.49895809]
[1743376468339,1.07507615,82340.0,82339.0,0.49895809]
[1743376468530,1.13415503,82340.0,82339.0,0.00092]
[1743376468734,0.1214754,82336.0,82335.0,0.0441]
[1743376469035,0.1221154,82336.0,82335.0,0.0441]
[1743376469339,0.24356379,82336.0,82335.0,0.0441]
[1743376470027,0.24856379,82336.0,82335.0,0.0441]
[1743376470541,0.24656379,82336.0,82335.0,0.0441]
[1743376471042,0.24956379,82336.0,82335.0,0.0441]
[1743376471821,0.26309335,82336.0,82335.0,0.0441]
[1743376473140,0.26409335,82336.0,82335.0,0.0441]
[1743376473839,0.26409335,82336.0,82335.0,0.04474]
[1743376474240,0.62589335,82336.0,82335.0,0.04474]
[1743376474431,0.62489335,82336.0,82335.0,0.0441]
[1743376474735,0.62389335,82336.0,82335.0,0.0441]
[1743376475337,0.61236379,82336.0,82335.0,0.0441]
[1743376475545,0.4909154,82336.0,82335.0,0.1655768]
[1743376475840,0.4909154,82336.0,82335.0,0.1662168]
[1743376475841,0.36944,82336.0,82335.0,0.1662168]
[1743376476037,0.00864,82336.0,82335.0,0.1662168]
[1743376476231,0.004,82336.0,82335.0,0.2549168]
[1743376476432,0.00872,82336.0,82335.0,0.2549168]
[1743376476645,0.1301954,82336.0,82335.0,0.2549168]
[1743376476835,0.1271954,82336.0,82335.0,0.2549168]
[1743376477042,0.1321954,82336.0,82335.0,0.2549168]
[1743376477537,0.1251954,82336.0,82335.0,0.2549168]
[1743376477742,0.1281954,82336.0,82335.0,0.2549168]
[1743376478440,0.1301954,82336.0,82335.0,0.2549168]
[1743376479141,0.1321954,82336.0,82335.0,0.2549168]
[1743376480039,0.1271954,82336.0,82335.0,0.2549168]
[1743376480229,0.1301954,82336.0,82335.0,0.2549168]
[1743376480732,0.4909954,82336.0,82335.0,0.2549168]
[1743376480939,0.4879954,82336.0,82335.0,0.2549168]
[1743376481145,0.61444969,82336.0,82335.0,0.13344]
[1743376481444,0.61444969,82336.0,82335.0,0.1328]
[1743376481842,0.0607432,82329.0,82321.0,0.1822377]
[1743376482036,0.1215032,82322.0,82321.0,0.1828777]
[1743376482344,0.1224232,82322.0,82321.0,0.1828777]
[1743376483246,0.1244232,82322.0,82321.0,0.1828777]
[1743376483445,0.1244232,82322.0,82321.0,0.00064]
[1743376483835,0.60669814,82322.0,82321.0,0.00064]
[1743376484039,0.1215034,82317.0,82316.0,0.121504]
[1743376484337,0.1224234,82317.0,82316.0,0.122224]
[1743376484843,0.1224234,82317.0,82316.0,0.00072]
[1743376485044,0.1224234,82317.0,82316.0,0.1332]
[1743376485243,0.1214234,82317.0,82316.0,0.13384]
[1743376486450,0.1234234,82317.0,82316.0,0.13384]
[1743376486840,0.1244234,82317.0,82316.0,0.13384]
[1743376487338,0.1244234,82317.0,82316.0,0.2553449]
[1743376489741,0.1244234,82317.0,82316.0,0.13384]
[1743376489946,0.1244234,82317.0,82313.0,0.00018215]
[1743376489947,0.1215078,82314.0,82313.0,0.00018215]
[1743376490253,0.1215152,82309.0,82308.0,0.0428]
[1743376490552,0.12263521,82309.0,82308.0,0.04352]
[1743376490747,0.12263521,82309.0,82308.0,0.04424]
[1743376490957,0.12263521,82309.0,82308.0,0.04352]
[1743376491141,0.12263521,82309.0,82308.0,0.1643167]
[1743376491456,0.12263521,82309.0,82308.0,0.1649967]
[1743376493057,0.12363521,82309.0,82308.0,0.2562967]
[1743376494160,0.12263521,82309.0,82308.0,0.2562967]
[1743376495046,0.16933521,82309.0,82308.0,0.2562967]
[1743376495247,0.16933521,82309.0,82308.0,0.13478]
[1743376495456,0.16933521,82309.0,82300.0,0.36098215]
[1743376495457,0.53013521,82309.0,82300.0,0.00018215]
[1743376495760,0.482327,82301.0,82300.0,0.00086215]
[1743376496055,0.483607,82301.0,82300.0,0.00018215]